bitfinex/quotes_BTCUSD_20250123
["timestamp","ask_amount","ask_price","bid_price","bid_amount"]
[1737655265073,4e-07,105970.0,105960.0,0.56027158]
[1737655265254,4e-07,105970.0,105960.0,0.58027158]
[1737655265451,4e-07,105970.0,105960.0,0.57927158]
[1737655265654,4e-07,105970.0,105960.0,0.58027158]
[1737655266335,4e-07,105970.0,105960.0,0.56027158]
[1737655266944,4e-07,105970.0,105960.0,0.54027158]
[1737655267094,4e-07,105970.0,105960.0,0.46727158]
[1737655267280,4e-07,105970.0,105960.0,0.44187158]
[1737655267727,4e-07,105970.0,105960.0,0.49187158]
[1737655268124,4e-07,105970.0,105960.0,0.53387158]
[1737655268693,4e-07,105970.0,105960.0,0.63067158]
[1737655269643,8e-07,105990.0,105980.0,0.09]
[1737655269848,8e-07,105990.0,105980.0,0.53270429]
[1737655270876,8e-07,105990.0,105980.0,0.53370429]
[1737655271060,8e-07,105990.0,105980.0,0.58050429]
[1737655271799,8e-07,105990.0,105980.0,0.58150429]
[1737655273662,8e-07,105990.0,105980.0,0.60053368]
[1737655275926,8e-07,105990.0,105980.0,0.65053368]
[1737655276128,0.0001426,106030.0,106020.0,0.314321]
[1737655276356,0.0001426,106030.0,106020.0,0.41166829]
[1737655276752,0.0001426,106030.0,106020.0,0.36166829]
[1737655276955,0.0001426,106030.0,106020.0,0.41166829]
[1737655277160,0.0001426,106030.0,106020.0,0.36166829]
[1737655277325,0.07824106,106030.0,106020.0,0.50901558]
[1737655277489,0.00064106,106030.0,106020.0,0.41166829]
[1737655277894,0.00064106,106030.0,106020.0,0.36166829]
[1737655278301,0.17255306,106030.0,106020.0,0.094321]
[1737655278876,0.07824106,106030.0,106020.0,0.094321]
[1737655279030,0.17255306,106030.0,106020.0,0.094321]
[1737655279417,0.188655,106020.0,106000.0,0.491667]
[1737655279623,0.62536863,106020.0,106000.0,0.40034129]
[1737655279839,0.62536863,106020.0,106010.0,0.09433]
[1737655279840,0.094328,106020.0,106010.0,0.09433]
[1737655280039,0.58873069,106030.0,106010.0,0.282975]
[1737655280279,0.094321,106020.0,106000.0,0.56902129]
[1737655280484,0.282972,106020.0,106000.0,0.58902229]
[1737655280620,0.471625,106020.0,106000.0,0.77869129]
[1737655280825,0.471625,106020.0,106000.0,0.85556042]
[1737655281335,0.660279,106020.0,106000.0,0.64689042]
[1737655281540,0.49049399,106020.0,106000.0,0.77769229]
[1737655281755,0.30283999,106020.0,106000.0,0.54568629]
[1737655281954,0.30283999,106020.0,106000.0,0.64001829]
[1737655282157,0.30283999,106020.0,106000.0,0.63901829]
[1737655282354,0.30283999,106020.0,106000.0,0.64001829]
[1737655282608,0.49149399,106020.0,106000.0,0.64001829]
[1737655282807,0.49150199,106020.0,106000.0,0.38134829]
[1737655283062,0.49150199,106020.0,106000.0,0.59001829]
[1737655283395,0.49150199,106020.0,106000.0,0.77868829]
[1737655283594,0.49150199,106020.0,106000.0,0.82868829]
[1737655283794,0.49150199,106020.0,106000.0,0.67291702]
[1737655284231,0.49149999,106020.0,106000.0,0.72291402]
[1737655284563,0.30284799,106020.0,106000.0,0.72291502]
[1737655284786,0.49149999,106020.0,106000.0,0.64001629]
[1737655284983,0.49149999,106020.0,106010.0,0.09433]
[1737655284984,0.30284799,106020.0,106010.0,0.09433]
[1737655285146,0.11419699,106020.0,106010.0,0.09433]
[1737655285343,0.001,106020.0,106010.0,0.09433]
[1737655285536,0.001,106020.0,106010.0,0.29454572]
[1737655286029,0.001,106020.0,106010.0,0.34454572]
[1737655286478,0.08986504,106030.0,106020.0,0.114321]
[1737655286681,0.08986504,106030.0,106020.0,0.21166829]
[1737655286992,0.18417704,106030.0,106010.0,0.471622]
[1737655287194,0.24805463,106020.0,106000.0,0.427334]
[1737655287332,0.43670363,106020.0,106010.0,0.09433]
[1737655287532,0.28297,106020.0,106010.0,0.09433]
[1737655287794,0.28297,106020.0,106010.0,0.09533]
[1737655288239,0.28297,106020.0,106010.0,0.09433]
[1737655288462,0.09433,106010.0,106000.0,0.38034829]
[1737655288641,0.24806763,106010.0,106000.0,0.094339]
[1737655288843,0.51663763,106010.0,106000.0,0.094339]
[1737655289195,0.362904,106010.0,106000.0,0.094339]
[1737655289398,0.174234,106010.0,106000.0,0.094339]
[1737655289773,0.0799,106010.0,106000.0,0.094339]
[1737655290133,0.17423,106010.0,106000.0,0.095339]
[1737655290430,0.17423,106010.0,106000.0,0.094339]
[1737655290643,0.0829,106010.0,106000.0,0.095339]
[1737655290846,0.003,106010.0,106000.0,0.28585529]
[1737655291358,0.003,106010.0,106000.0,0.28485529]
[1737655291710,0.003,106010.0,106000.0,0.43485529]
[1737655291913,0.003,106010.0,106000.0,0.48485529]
[1737655292118,0.003,106010.0,106000.0,0.60775529]
[1737655292326,0.003,106010.0,106000.0,0.63743281]
[1737655292716,0.00064106,106030.0,106020.0,0.314321]
[1737655292921,0.00064106,106030.0,106020.0,0.43584658]
[1737655293959,0.00064106,106030.0,106020.0,0.58904658]
[1737655294188,0.00064106,106030.0,106020.0,0.61870453]
[1737655294189,6e-08,106030.0,106020.0,0.61870453]
[1737655294387,6e-08,106030.0,106020.0,0.68870453]
[1737655294807,0.0101498,106050.0,106040.0,0.365304]
[1737655295000,0.0001426,106060.0,106050.0,0.307295]
[1737655295194,0.0001426,106060.0,106050.0,0.50384229]
[1737655295427,6e-07,106060.0,106050.0,0.58242346]
[1737655295978,6e-07,106060.0,106050.0,0.48242346]
[1737655296190,0.0001426,106080.0,106070.0,0.114277]
[1737655296560,0.0001426,106080.0,106070.0,0.38580258]
[1737655297381,0.0001426,106080.0,106070.0,0.43580258]
[1737655298068,0.0001426,106080.0,106070.0,0.38580258]
[1737655298265,0.0001426,106080.0,106070.0,0.39162429]
[1737655298397,0.0001426,106080.0,106070.0,0.41162429]
[1737655298613,0.0001426,106080.0,106070.0,0.41262429]
[1737655300583,0.4140526,106120.0,106090.0,0.114259]
[1737655300799,0.2255806,106120.0,106110.0,0.094241]
[1737655301001,0.2255806,106120.0,106100.0,0.188486]
[1737655301210,0.1313426,106120.0,106110.0,0.094241]
[1737655301772,0.14238366,106120.0,106110.0,0.09439029]
[1737655301976,0.25921605,106120.0,106110.0,0.09539029]
[1737655302235,0.25921605,106120.0,106110.0,0.13860708]
[1737655302976,0.25921605,106120.0,106110.0,0.00114929]
[1737655302977,0.41294968,106120.0,106110.0,0.00114929]
[1737655303239,0.6730306,106120.0,106110.0,0.00114929]
[1737655303454,0.8140306,106120.0,106110.0,0.00114929]
[1737655303667,0.8140306,106120.0,106110.0,0.00014929]
[1737655303668,0.8100306,106120.0,106110.0,0.00014929]
[1737655303871,0.8160306,106120.0,106110.0,0.00114929]
[1737655304078,0.8160306,106120.0,106060.0,0.471398]
[1737655304079,0.094268,106080.0,106060.0,0.471398]
[1737655304289,0.24801063,106070.0,106060.0,0.09442938]
[1737655304488,0.24801063,106070.0,106060.0,0.00014938]
[1737655307008,0.50135792,106070.0,106060.0,0.00114938]
[1737655307216,0.50135792,106070.0,106060.0,0.00014938]
[1737655307217,0.69350521,106070.0,106060.0,0.00014938]
[1737655307539,0.73970521,106070.0,106060.0,0.00014938]
[1737655307701,0.74570521,106070.0,106060.0,0.00114938]
[1737655307904,0.74670521,106070.0,106060.0,0.00114938]
[1737655308366,0.74570521,106070.0,106060.0,0.00114938]
[1737655308524,0.78009601,106070.0,106060.0,0.00114938]
[1737655308731,0.80159694,106070.0,106060.0,0.00114938]
[1737655309069,0.65810486,106070.0,106060.0,0.00114938]
[1737655309484,0.65210486,106070.0,106060.0,0.00014938]
[1737655309687,0.50210486,106070.0,106060.0,0.00114938]
[1737655309831,0.51110486,106070.0,106060.0,0.00114938]
[1737655310465,0.36755757,106070.0,106060.0,0.00114938]
[1737655310676,0.04174694,106070.0,106060.0,0.09543538]
[1737655310872,0.04174694,106070.0,106060.0,0.16155502]
[1737655311068,0.04174694,106070.0,106060.0,0.47890231]
[1737655311069,0.09704601,106070.0,106060.0,0.47890231]
[1737655311258,0.09704601,106070.0,106060.0,0.24543538]
[1737655311859,0.09404601,106070.0,106060.0,0.29543538]
[1737655312056,0.08504601,106070.0,106060.0,0.41178267]
[1737655312312,0.0768,106070.0,106060.0,0.41178267]
[1737655312519,0.0768,106070.0,106060.0,0.36178267]
[1737655312872,0.23053363,106070.0,106060.0,0.09443538]
[1737655313295,0.171077,106070.0,106060.0,0.09443538]
[1737655313486,0.32481063,106070.0,106060.0,0.09443538]
[1737655314213,0.32481063,106070.0,106060.0,0.00014938]
[1737655314422,0.40101063,106070.0,106060.0,0.00014938]
[1737655314595,0.61870521,106070.0,106060.0,0.00014938]
[1737655314797,0.0738,106030.0,106020.0,0.282948]
[1737655315000,0.168112,106030.0,106020.0,0.09446644]
[1737655315182,0.168112,106030.0,106020.0,0.09447044]
[1737655316027,0.32184563,106030.0,106020.0,0.00014944]
[1737655316225,0.168112,106030.0,106020.0,0.00014944]
[1737655316789,0.24804563,106030.0,106020.0,0.00014944]
[1737655317231,0.24804563,106030.0,106020.0,0.00114944]
[1737655317428,0.471533,106040.0,106020.0,0.09546644]
[1737655317667,0.01914931,106040.0,106030.0,0.094312]
[1737655317882,0.91640963,106060.0,106040.0,0.471509]
[1737655318084,0.0738,106050.0,106040.0,0.282903]
[1737655318519,0.168086,106060.0,106050.0,0.094295]
[1737655318989,0.08430471,106060.0,106050.0,0.15317923]
[1737655319243,0.18459071,106060.0,106050.0,0.094295]
[1737655319420,0.17859071,106060.0,106040.0,0.58883429]
[1737655319651,0.17859071,106060.0,106050.0,0.094295]
[1737655319834,0.09330471,106060.0,106050.0,0.095295]
[1737655320056,0.27287871,106060.0,106040.0,0.188595]
[1737655320247,0.27287871,106060.0,106030.0,0.471535]
[1737655320248,0.094295,106050.0,106030.0,0.471535]
[1737655320459,0.75502818,106060.0,106040.0,0.094298]
[1737655320669,0.08430471,106060.0,106050.0,0.094295]
[1737655321115,0.08430471,106060.0,106050.0,0.19164229]
[1737655321320,0.08430471,106060.0,106050.0,0.094295]
[1737655321517,0.17859071,106060.0,106050.0,0.094295]
[1737655321934,0.18159071,106060.0,106050.0,0.094295]
[1737655322132,0.17859071,106060.0,106050.0,0.094295]
[1737655322560,0.18159071,106060.0,106050.0,0.094295]
[1737655322764,0.10779071,106060.0,106050.0,0.094295]
[1737655323420,0.48494071,106060.0,106040.0,0.661083]
[1737655323603,0.45010334,106060.0,106040.0,0.283895]
[1737655323810,0.63868334,106060.0,106040.0,0.471493]
[1737655324032,0.29636971,106060.0,106050.0,0.094295]
[1737655324640,0.01350471,106060.0,106050.0,0.094295]
[1737655324851,0.01050471,106060.0,106050.0,0.1673041]
[1737655325064,0.01050471,106060.0,106050.0,0.26465139]
[1737655325283,0.0944174,106080.0,106070.0,0.094277]
[1737655325489,0.0001424,106080.0,106070.0,0.094277]
[1737655325693,0.26168038,106080.0,106060.0,0.282837]
[1737655325897,0.094277,106070.0,106060.0,0.282837]
[1737655326133,0.094277,106070.0,106050.0,0.37715]
[1737655326329,0.282837,106070.0,106050.0,0.42715]
[1737655326470,0.282837,106070.0,106050.0,0.71016744]
[1737655326666,0.094286,106060.0,106050.0,0.00014944]
[1737655327059,0.24801963,106060.0,106050.0,0.00014944]
[1737655327260,0.094286,106060.0,106050.0,0.00014944]
[1737655327482,0.094286,106060.0,106050.0,0.09444444]
[1737655328781,0.094286,106060.0,106050.0,0.09474327]
[1737655329478,0.097286,106060.0,106050.0,0.09474327]
[1737655331240,0.33270522,106060.0,106050.0,0.00044827]
[1737655331571,0.003,106060.0,106050.0,0.09474327]
[1737655333561,0.01346397,106060.0,106050.0,0.09474327]
[1737655333771,0.003,106060.0,106050.0,0.09474327]
[1737655334490,0.0216379,106060.0,106050.0,0.09474327]
[1737655334632,0.0954379,106060.0,106050.0,0.09474327]
[1737655334994,0.1897239,106060.0,106050.0,0.09474327]
[1737655335201,0.0954379,106060.0,106050.0,0.09474327]
[1737655336152,0.35186243,106060.0,106050.0,0.00044827]
[1737655336680,0.46025382,106060.0,106050.0,0.00044827]
[1737655337697,1.01125382,106060.0,106050.0,0.00044827]
[1737655337883,0.94201565,106060.0,106010.0,0.37774251]
[1737655338087,0.188633,106030.0,106010.0,0.28391297]
[1737655338451,0.094321,106020.0,106010.0,0.28391297]
[1737655338695,0.62532063,106030.0,106010.0,0.47257397]
[1737655339100,0.471587,106030.0,106010.0,0.66122697]
[1737655339338,0.282953,106030.0,106020.0,0.094321]
[1737655339446,0.62532163,106030.0,106010.0,0.47356497]
[1737655339651,0.094321,106020.0,106010.0,0.09526397]
[1737655339968,0.282953,106030.0,106020.0,0.094321]
[1737655340185,0.282953,106030.0,106010.0,0.37824797]
[1737655340400,0.282953,106030.0,106010.0,0.47257097]
[1737655340401,0.471588,106030.0,106010.0,0.47257097]
[1737655340553,0.71314718,106030.0,106010.0,0.47257097]
[1737655340757,0.377268,106030.0,106010.0,0.28491597]
[1737655340957,0.471588,106030.0,106010.0,0.47356897]
[1737655341221,0.471588,106030.0,106010.0,0.47142826]
[1737655341517,0.282953,106030.0,106020.0,0.094321]
[1737655342024,0.471587,106030.0,106010.0,0.28277726]
[1737655342356,0.094321,106020.0,106010.0,0.28277726]
[1737655342568,0.58245589,106030.0,106010.0,0.28277726]
[1737655342811,0.58245589,106030.0,106010.0,0.47142926]
[1737655343038,0.50106213,106030.0,106010.0,0.65908226]
[1737655343263,0.31242813,106030.0,106020.0,0.094321]
[1737655343468,0.08423358,106030.0,106020.0,0.094321]
[1737655343680,0.0738,106030.0,106020.0,0.094321]
[1737655344077,0.168112,106030.0,106020.0,0.094321]
[1737655344275,0.0738,106030.0,106020.0,0.094321]
[1737655344420,0.0768,106030.0,106020.0,0.094321]
[1737655344828,0.171112,106030.0,106020.0,0.094321]
[1737655345062,0.0768,106030.0,106020.0,0.094321]
[1737655345257,0.003,106030.0,106020.0,0.57581015]
[1737655345674,0.003,106030.0,106020.0,0.49316829]
[1737655345876,0.36725804,106050.0,106030.0,0.471541]
[1737655346105,0.43664963,106040.0,106020.0,0.364445]
[1737655346263,0.43664963,106040.0,106030.0,0.094312]
[1737655346458,0.282916,106040.0,106030.0,0.094312]
[1737655346663,0.375092,106040.0,106030.0,0.094312]
[1737655347421,0.285916,106040.0,106030.0,0.094312]
[1737655347991,0.097304,106040.0,106030.0,0.094312]
[1737655348191,0.003,106040.0,106030.0,0.094312]
[1737655348773,0.097304,106040.0,106030.0,0.094312]
[1737655348983,0.474536,106040.0,106020.0,0.603078]
[1737655349199,0.094312,106030.0,106020.0,0.094317]
[1737655349398,0.282943,106030.0,106010.0,0.65907626]
[1737655349532,0.62531063,106030.0,106010.0,0.47042526]
[1737655349736,0.43667663,106030.0,106010.0,0.47042526]
[1737655350073,0.4717574,106040.0,106020.0,0.188634]
[1737655350382,0.50663877,106040.0,106030.0,0.094312]
[1737655350710,0.50664077,106040.0,106020.0,0.660211]
[1737655350864,0.60095377,106040.0,106020.0,0.471576]
[1737655351065,0.094312,106030.0,106020.0,0.283942]
[1737655351490,0.50664577,106040.0,106020.0,0.283942]
[1737655351700,0.50664577,106040.0,106020.0,0.472585]
[1737655351882,0.282924,106040.0,106020.0,0.377258]
[1737655352084,0.282924,106040.0,106020.0,0.282944]
[1737655352288,0.47154,106040.0,106020.0,0.283944]
[1737655352585,0.094312,106030.0,106020.0,0.283944]
[1737655353144,0.67890517,106040.0,106020.0,0.47258]
[1737655353331,0.094312,106030.0,106020.0,0.47258]
[1737655353542,0.094312,106030.0,106020.0,0.282944]
[1737655353759,0.49303178,106040.0,106020.0,0.282944]
[1737655354065,0.094312,106030.0,106020.0,0.283944]
[1737655354267,0.094312,106030.0,106020.0,0.00029883]
[1737655354646,0.094312,106030.0,106020.0,0.00129883]
[1737655355104,0.17536719,106030.0,106020.0,0.00129883]
[1737655356035,0.17536719,106030.0,106020.0,0.09561983]
[1737655356574,0.17536719,106030.0,106020.0,0.00129883]
[1737655356770,0.094312,106030.0,106020.0,0.09561983]
[1737655356978,0.0084114,106030.0,106020.0,0.28425583]
[1737655357185,0.094312,106030.0,106020.0,0.00129883]
[1737655358241,0.49539292,106030.0,106020.0,0.00129883]
[1737655358451,0.69501122,106030.0,106020.0,0.00129883]
[1737655358652,0.282998,106010.0,106000.0,0.094339]
[1737655358905,0.094337,106010.0,106000.0,0.094339]
[1737655359539,0.471665,106010.0,105990.0,0.47201504]
[1737655359743,0.471668,106010.0,105990.0,0.47201504]
[1737655359893,0.471668,106010.0,105990.0,0.66070304]
[1737655360105,0.282998,106010.0,106000.0,0.094339]
[1737655360491,0.003,106010.0,106000.0,0.094339]
[1737655360691,0.282981,106020.0,106000.0,0.094339]
[1737655360944,0.56897929,106020.0,106000.0,0.330207]
[1737655361150,0.003,106010.0,106000.0,0.283006]
[1737655362117,0.004,106010.0,106000.0,0.283006]
[1737655362473,0.004,106010.0,106000.0,0.51215329]
[1737655363349,0.007,106010.0,106000.0,0.51215329]
[1737655363554,0.29191416,106030.0,106010.0,0.377297]
[1737655363922,0.0278135,106030.0,106020.0,0.094321]
[1737655364288,0.1221255,106030.0,106020.0,0.094321]
[1737655364471,0.0278135,106030.0,106020.0,0.094321]
[1737655364985,0.0298135,106030.0,106020.0,0.094321]
[1737655365303,0.1221255,106030.0,106020.0,0.094321]
[1737655365751,0.0338135,106030.0,106020.0,0.094321]
[1737655366199,0.1221255,106030.0,106020.0,0.094321]
[1737655366376,0.3137685,106030.0,106010.0,0.282973]
[1737655366582,0.5034025,106030.0,106010.0,0.471624]
[1737655366779,0.5034025,106030.0,106010.0,0.660276]
[1737655367009,0.5034025,106030.0,106010.0,0.66057525]
[1737655367162,0.0738,106020.0,106010.0,0.28327225]
[1737655367983,0.0738,106020.0,106010.0,0.33327225]
[1737655368683,0.0738,106020.0,106010.0,0.43061954]
[1737655370749,0.0738,106020.0,106010.0,0.43161954]
[1737655371119,0.0738,106020.0,106010.0,0.43261954]
[1737655371499,0.0738,106020.0,106010.0,0.43161954]
[1737655371954,0.0738,106020.0,106010.0,0.33327225]
[1737655372264,0.0738,106020.0,106010.0,0.28327225]
[1737655372415,0.0738,106020.0,106010.0,0.33327225]
[1737655373094,0.08291766,106030.0,106020.0,0.094321]
[1737655373299,0.07444124,106030.0,106020.0,0.34306829]
[1737655373700,0.07444124,106030.0,106020.0,0.49306829]
[1737655376188,0.00064124,106030.0,106020.0,0.49306829]
[1737655378176,0.00064124,106030.0,106020.0,0.54116829]
[1737655378313,0.00064124,106030.0,106020.0,0.55238455]
[1737655378945,0.00064124,106030.0,106020.0,0.49116829]
[1737655379907,0.00064124,106030.0,106020.0,0.52116829]
[1737655380207,0.00064124,106030.0,106020.0,0.49306829]
[1737655383381,0.00064124,106030.0,106020.0,0.325721]
[1737655383687,0.00064124,106030.0,106020.0,0.244321]
[1737655383918,0.00064124,106030.0,106020.0,0.294321]
[1737655384437,0.00064124,106030.0,106020.0,0.094321]
[1737655385286,0.35737924,106030.0,106020.0,0.094321]
[1737655385466,0.42735113,106030.0,106020.0,0.094321]
[1737655385868,0.35737924,106030.0,106020.0,0.094321]
[1737655386098,0.07444124,106030.0,106020.0,0.094321]
[1737655386316,0.16875324,106030.0,106020.0,0.094321]
[1737655386845,0.07444124,106030.0,106020.0,0.094321]
[1737655387287,0.07544124,106030.0,106020.0,0.094321]
[1737655387636,0.16975324,106030.0,106020.0,0.094321]
[1737655387752,0.07544124,106030.0,106020.0,0.094321]
[1737655387954,0.08432451,106030.0,106020.0,0.16237712]
[1737655388364,0.08432451,106030.0,106020.0,0.094321]
[1737655388563,0.08332451,106030.0,106020.0,0.094321]
[1737655388823,0.08632451,106030.0,106020.0,0.094321]
[1737655389109,0.08732451,106030.0,106020.0,0.094321]
[1737655389611,0.08632451,106030.0,106020.0,0.09462025]
[1737655390158,0.18063651,106030.0,106020.0,0.00029925]
[1737655391054,0.10683651,106030.0,106020.0,0.00029925]
[1737655391378,0.01252451,106030.0,106010.0,0.61627225]
[1737655391588,0.00952451,106030.0,106020.0,0.094321]
[1737655392015,0.01352451,106030.0,106020.0,0.094321]
[1737655392218,0.01052451,106030.0,106020.0,0.24166829]
[1737655392467,0.00952451,106030.0,106020.0,0.144321]
[1737655393188,0.00952451,106030.0,106020.0,0.26166829]
[1737655393419,0.00064124,106030.0,106020.0,0.49486829]
[1737655395028,0.00064124,106030.0,106020.0,0.49586829]
[1737655395986,0.00064124,106030.0,106020.0,0.49686829]
[1737655396806,0.00064124,106030.0,106020.0,0.44686829]
[1737655397193,0.00064124,106030.0,106020.0,0.49686829]
[1737655398057,0.00064124,106030.0,106020.0,0.49586829]
[1737655398656,0.00064124,106030.0,106020.0,0.49686829]
[1737655401331,0.00064124,106030.0,106020.0,0.49716754]
[1737655405236,0.00064124,106030.0,106020.0,0.49691254]
[1737655408214,0.00064124,106030.0,106020.0,0.52569226]
[1737655410282,0.00064124,106030.0,106020.0,0.44691254]
[1737655410482,0.00064124,106030.0,106020.0,0.49691254]
[1737655411120,0.00064124,106030.0,106020.0,0.47691254]
[1737655411322,0.00064124,106030.0,106020.0,0.49691254]
[1737655412103,0.00064124,106030.0,106020.0,0.34371254]
[1737655412305,0.16875324,106030.0,106020.0,0.09636525]
[1737655412678,0.25758733,106030.0,106020.0,0.09636525]
[1737655412908,0.18378733,106030.0,106020.0,0.09636525]
[1737655413322,0.09495324,106030.0,106020.0,0.09636525]
[1737655413525,0.00064124,106030.0,106020.0,0.09636525]
[1737655414055,0.01005837,106030.0,106020.0,0.09636525]
[1737655415552,0.09495324,106030.0,106020.0,0.09636525]
[1737655415765,0.42153116,106030.0,106020.0,0.00229925]
[1737655415952,0.67140879,106030.0,106010.0,0.08313326]
[1737655416174,0.44714126,106020.0,106010.0,0.06346484]
[1737655416310,0.44714126,106020.0,105990.0,0.06376388]
[1737655416311,0.094339,106000.0,105990.0,0.06376388]
[1737655416511,0.171339,106000.0,105990.0,0.06376388]
[1737655416714,0.42241692,106000.0,105990.0,0.06376388]
[1737655417546,0.26868629,106000.0,105990.0,0.06376388]
[1737655417705,0.171339,106000.0,105990.0,0.15811188]
[1737655418308,0.077,106000.0,105990.0,0.15811188]
[1737655418673,0.172339,106000.0,105990.0,0.15811188]
[1737655418984,0.19690085,106000.0,105990.0,0.15911188]
[1737655419472,0.1999121,106000.0,105990.0,0.15811188]
[1737655419678,0.1999121,106000.0,105990.0,0.09464704]
[1737655419852,0.29725939,106000.0,105990.0,0.09464704]
[1737655420312,0.1055731,106000.0,105990.0,0.09464704]
[1737655420711,0.2029121,106000.0,105990.0,0.09464704]
[1737655421212,0.1085731,106000.0,105990.0,0.09464704]
[1737655421774,0.2029121,106000.0,105990.0,0.09464704]
[1737655422676,0.2029121,106000.0,105990.0,0.00029904]
[1737655423225,0.22659824,106000.0,105990.0,0.00029904]
[1737655423727,0.38032887,106000.0,105990.0,0.00029904]
[1737655424122,0.22659824,106000.0,105990.0,0.00029904]
[1737655424714,0.38032887,106000.0,105990.0,0.00029904]
[1737655425009,0.45399002,106000.0,105990.0,0.00029904]
[1737655425522,0.48174989,106000.0,105990.0,0.00029904]
[1737655425731,0.2029121,106000.0,105990.0,0.09464704]
[1737655426134,0.0315731,106000.0,105990.0,0.09464704]
[1737655426341,0.1259121,106000.0,105990.0,0.09464704]
[1737655426507,0.0315731,106000.0,105990.0,0.00029904]
[1737655426749,0.0315731,106000.0,105990.0,0.09464704]
[1737655426948,0.1259121,106000.0,105990.0,0.09464704]
[1737655427344,0.1259121,106000.0,105990.0,0.00029904]
[1737655427602,0.37699002,106000.0,105990.0,0.00029904]
[1737655428360,0.40474989,106000.0,105990.0,0.00029904]
[1737655429558,0.65854989,106000.0,105990.0,0.00029904]
[1737655430823,0.094366,105970.0,105960.0,0.00029904]
[1737655431403,0.19171329,105970.0,105960.0,0.00029904]
[1737655431805,0.21047649,105970.0,105960.0,0.00029904]
[1737655432202,0.1131292,105970.0,105960.0,0.00044775]
[1737655432370,0.1161292,105970.0,105960.0,0.00044775]
[1737655432570,0.36820712,105970.0,105960.0,0.00044775]
[1737655432829,0.1171292,105970.0,105960.0,0.00044775]
[1737655433245,0.1171292,105970.0,105960.0,0.09482275]
[1737655433457,0.1171292,105970.0,105960.0,0.00044775]
[1737655433627,0.1171292,105970.0,105960.0,0.09482275]
[1737655433832,0.1171292,105970.0,105960.0,0.00044775]
[1737655434040,0.098366,105970.0,105960.0,0.09482275]
[1737655434362,0.098366,105970.0,105960.0,0.00044775]
[1737655434574,0.19571329,105970.0,105960.0,0.00044775]
[1737655434990,0.098366,105970.0,105960.0,0.00044775]
[1737655436179,0.10745161,105970.0,105960.0,0.00044775]
[1737655436514,0.10745161,105970.0,105960.0,0.09482275]
[1737655437430,0.01308561,105970.0,105960.0,0.09482275]
[1737655437586,0.10745161,105970.0,105960.0,0.09482275]
[1737655437804,0.01308561,105970.0,105960.0,0.09482275]
[1737655438408,0.01308561,105970.0,105960.0,0.22983779]
[1737655438805,0.01308561,105970.0,105960.0,0.09482275]
[1737655439007,0.10745161,105970.0,105960.0,0.09482275]
[1737655440045,0.10645161,105970.0,105960.0,0.09482275]
[1737655440251,0.10345161,105970.0,105960.0,0.09482275]
[1737655440791,0.00908561,105970.0,105960.0,0.14482275]
[1737655440964,0.801601,105980.0,105960.0,0.14482275]
[1737655440965,0.612878,105980.0,105960.0,0.14482275]
[1737655441166,0.612878,105980.0,105970.0,0.094366]
[1737655442318,0.33881745,105980.0,105970.0,0.094366]
[1737655445599,0.43717445,105980.0,105970.0,0.094366]
[1737655445796,0.62589845,105980.0,105960.0,0.74403775]
[1737655445998,0.72324574,105980.0,105970.0,0.094366]
[1737655446242,0.72324574,105980.0,105960.0,0.47230075]
[1737655446243,0.81761574,105980.0,105960.0,0.47230075]
[1737655446403,0.81462945,105980.0,105960.0,0.47230075]
[1737655446603,0.81462945,105980.0,105960.0,0.66104975]
[1737655446803,0.81362945,105980.0,105960.0,0.47230075]
[1737655447007,0.00705121,105970.0,105960.0,0.28355175]
[1737655447409,0.08085121,105970.0,105960.0,0.28355175]
[1737655447815,0.08085121,105970.0,105960.0,0.38089904]
[1737655448012,0.08085121,105970.0,105960.0,0.58089904]
[1737655448652,0.0738,105970.0,105960.0,0.58089904]
[1737655449469,0.0738,105970.0,105960.0,0.60089904]
[1737655449698,0.0738,105980.0,105970.0,0.314366]
[1737655449839,0.0738,105980.0,105970.0,0.41171329]
[1737655451210,0.0738,105980.0,105970.0,0.41271329]
[1737655451621,0.07409925,105990.0,105980.0,0.094357]
[1737655451836,0.07409925,105990.0,105980.0,0.144357]
[1737655452132,0.08290017,105990.0,105980.0,0.144357]
[1737655452942,0.08290017,105990.0,105980.0,0.094357]
[1737655453679,0.17724817,105990.0,105980.0,0.094357]
[1737655453805,0.08290017,105990.0,105980.0,0.094357]
[1737655454005,0.17724817,105990.0,105980.0,0.094357]
[1737655454236,0.61312459,105990.0,105970.0,0.4718]
[1737655454470,0.61412459,105990.0,105970.0,0.4718]
[1737655454713,0.61412459,105990.0,105970.0,0.660524]
[1737655454913,0.61412459,105990.0,105970.0,0.4718]
[1737655455128,0.00705507,105980.0,105970.0,0.283079]
[1737655455325,0.00705507,105980.0,105970.0,0.43042629]
[1737655455919,0.00680003,105980.0,105970.0,0.43042629]
[1737655456303,0.08060003,105980.0,105970.0,0.43042629]
[1737655456501,0.0738,105980.0,105970.0,0.43042629]
[1737655457409,0.0738,105980.0,105970.0,0.43242629]
[1737655457757,0.0738,105980.0,105970.0,0.43042629]
[1737655458315,0.0738,105980.0,105970.0,0.53042629]
[1737655458837,0.0738,105980.0,105970.0,0.72612629]
[1737655459031,0.0738,105980.0,105970.0,0.75492229]
[1737655459432,0.00305376,105980.0,105970.0,0.75492229]
[1737655459676,0.00305376,105980.0,105970.0,0.75592229]
[1737655460091,0.00305376,105980.0,105970.0,0.75806479]
[1737655460357,0.00305376,105980.0,105970.0,0.75706479]
[1737655460802,0.00305376,105980.0,105970.0,0.75806479]
[1737655461006,0.00305376,105980.0,105970.0,0.72726879]
[1737655461205,0.00305376,105980.0,105970.0,0.72926879]
[1737655462461,0.00305376,105980.0,105970.0,0.77926879]
[1737655464338,0.00305376,105980.0,105970.0,0.78831896]
[1737655464604,7.6e-07,105980.0,105970.0,0.78831896]
[1737655468316,7.6e-07,105980.0,105970.0,0.73831896]
[1737655473000,7.6e-07,105980.0,105970.0,0.78831896]
[1737655473629,7.6e-07,105980.0,105970.0,0.84003469]
[1737655474072,7.6e-07,105980.0,105970.0,0.71703469]
[1737655474282,7.6e-07,105980.0,105970.0,0.73831896]
[1737655475518,7.6e-07,105980.0,105970.0,0.76131896]
[1737655475902,0.25,106000.0,105990.0,0.244848]
[1737655476107,0.25,106000.0,105990.0,0.39219529]
[1737655476282,0.25,106000.0,105990.0,0.54219529]
[1737655476425,0.25,106000.0,105990.0,0.49219529]
[1737655476634,0.25,106000.0,105990.0,0.44369529]
[1737655476831,0.25,106000.0,105990.0,0.49369529]
[1737655477467,0.25,106000.0,105990.0,0.49569529]
[1737655477864,0.25,106000.0,105990.0,0.49669529]
[1737655478065,0.212264,106000.0,105990.0,0.49669529]